bitfinex/quotes_ETHUSD_20240731
["timestamp","ask_amount","ask_price","bid_price","bid_amount"]
[1722454395621,3.04142,3288.0,3286.9,3.04232]
[1722454395938,3.04173,3287.6,3287.0,35.0]
[1722454396139,3.04173,3287.6,3286.7,2.359]
[1722454396460,3.04155,3287.8,3286.8,3.27837]
[1722454396614,3.04161,3287.8,3286.9,35.0]
[1722454396806,3.04161,3287.8,3286.1,5.80276]
[1722454396807,3.04208,3287.3,3286.2,3.04295]
[1722454396999,3.04189,3287.5,3286.2,3.04295]
[1722454397229,3.04208,3287.3,3286.3,3.04292]
[1722454397431,3.04208,3287.3,3286.4,0.608587]
[1722454398035,2.2614,3288.0,3286.5,0.06084291]
[1722454398036,3.04167,3287.7,3286.5,0.06084291]
[1722454398237,3.04136,3288.0,3286.6,35.0]
[1722454398425,3.0,3288.1,3286.9,3.04229]
[1722454398632,3.04142,3288.0,3287.0,0.06083679]
[1722454398832,3.04101,3288.4,3287.2,3.04204]
[1722454399002,7.47,3288.7,3287.4,3.04183]
[1722454399201,3.04091,3288.5,3287.5,3.10257459]
[1722454399418,3.0408,3288.6,3287.5,3.10257459]
[1722454399615,3.0408,3288.6,3287.6,3.04172]
[1722454399945,3.04053,3288.9,3287.7,0.0608246]
[1722454400104,3.04044,3289.0,3287.8,3.41255147]
[1722454400305,7.47,3289.3,3287.8,3.41255147]
[1722454400306,3.04058,3288.9,3287.8,0.37107147]
[1722454400608,3.03966,3289.9,3287.9,35.0]
[1722454400918,3.04041,3289.1,3288.0,0.06081386]
[1722454401114,3.04041,3289.1,3288.0,3.10211386]
[1722454401317,3.04041,3289.1,3288.1,2.98520829]
[1722454401524,0.1464054,3289.7,3288.3,3.04105]
[1722454401720,0.1464054,3289.7,3288.4,0.06080758]
[1722454402044,3.1862554,3289.7,3288.6,3.04078]
[1722454402218,3.1862554,3289.7,3288.7,3.10150036]
[1722454402425,3.1862554,3289.7,3288.4,2.4247]
[1722454402426,0.1464054,3289.7,3288.8,0.3709504]
[1722454402644,0.1464054,3289.7,3288.4,2.4247]
[1722454402645,3.04027,3289.2,3288.4,2.4247]
[1722454402851,0.1464054,3289.7,3288.5,35.0]
[1722454403079,3.04012,3289.4,3288.5,35.0]
[1722454403207,0.1464054,3289.7,3288.6,0.06080669]
[1722454403641,0.1464054,3289.7,3288.8,3.04055]
[1722454403859,0.1464054,3289.7,3288.9,38.40537023]
[1722454404166,0.1464054,3289.7,3289.0,3.04037]
[1722454404343,0.1464054,3289.7,3289.1,3.10108146]
[1722454404509,0.1464054,3289.7,3289.1,0.06079146]
[1722454404863,0.1464054,3289.7,3289.5,3.03991]
[1722454405046,0.1464054,3289.7,3289.6,0.36477567]
[1722454405211,0.1464054,3289.7,3289.6,35.303991]
[1722454407116,0.1464054,3289.7,3289.6,38.343871]
[1722454407545,0.1464054,3289.7,3289.6,35.303991]
[1722454407775,0.1464054,3289.7,3289.6,35.0]
[1722454408261,0.1464054,3289.7,3289.1,3.04034]
[1722454408417,0.1464054,3289.7,3289.2,3.0]
[1722454408622,0.1464054,3289.7,3289.3,35.0]
[1722454409627,0.1464054,3289.7,3289.2,3.0]
[1722454409851,0.1464054,3289.7,3288.9,3.344515]
[1722454409852,3.1861954,3289.7,3288.9,0.304055]
[1722454410161,0.1464054,3289.7,3289.0,35.0]
[1722454410318,3.1861954,3289.7,3288.9,0.304055]
[1722454410521,0.1464054,3289.7,3288.2,2.2781]
[1722454410720,3.03998,3289.5,3288.5,3.04089]
[1722454410930,3.03988,3289.6,3288.5,3.04089]
[1722454411170,3.03988,3289.6,3288.3,38.04105]
[1722454411171,3.03998,3289.5,3288.3,6.08206]
[1722454411318,3.04016,3289.3,3288.4,0.836016]
[1722454411653,3.04016,3289.3,3288.5,35.0]
[1722454411857,3.04025,3289.2,3288.5,35.0]
[1722454412245,3.04014,3289.4,3288.5,35.0]
[1722454412963,3.04014,3289.4,3288.6,0.06080451]
[1722454413158,3.04034,3289.2,3288.5,35.0]
[1722454413456,3.04051,3289.0,3288.5,35.0]
[1722454413631,3.04063,3288.8,3287.8,0.31025446]
[1722454413831,3.04072,3288.7,3287.8,0.31025446]
[1722454414060,0.304034,3289.2,3288.1,35.0]
[1722454414261,3.04096,3288.5,3288.1,35.0]
[1722454414486,3.04096,3288.5,3287.5,2.3233]
[1722454414487,3.04108,3288.3,3287.5,2.3233]
[1722454414783,0.304034,3289.2,3287.6,0.536519]
[1722454414784,3.04067,3288.8,3287.6,0.536519]
[1722454414953,3.04106,3288.4,3287.7,35.0]
[1722454415150,3.04127,3288.1,3287.7,35.0]
[1722454415349,6.08226,3288.3,3287.7,35.0]
[1722454415566,3.0411,3288.3,3287.7,35.0]
[1722454415947,3.04115,3288.3,3287.7,35.0]
[1722454416354,3.04099,3288.4,3287.7,35.0]
[1722454416581,3.04099,3288.4,3287.7,37.98520829]
[1722454416802,0.304034,3289.2,3287.7,37.98520829]
[1722454417004,3.04059,3288.9,3287.7,37.98520829]
[1722454417301,0.304034,3289.2,3287.7,37.98520829]
[1722454417302,3.04113,3288.3,3287.7,37.98520829]
[1722454417502,3.04065,3288.8,3287.7,37.98520829]
[1722454417717,3.344334,3289.2,3287.8,3.04602939]
[1722454417718,3.04084,3288.6,3287.8,3.04602939]
[1722454417991,3.0409,3288.5,3287.8,3.04602939]
[1722454418154,3.04104,3288.4,3287.8,2.98520829]
[1722454418467,3.04104,3288.4,3287.7,35.0]
[1722454418664,3.04116,3288.3,3287.7,35.0]
[1722454418879,3.04116,3288.3,3287.8,0.0608217]
[1722454419191,3.04123,3288.2,3287.8,0.06082484]
[1722454419487,3.04123,3288.2,3287.7,35.0]
[1722454419690,3.04147,3287.9,3287.1,3.0]
[1722454419889,3.04052,3289.0,3287.1,0.604233]
[1722454419890,3.04129,3288.1,3287.1,0.604233]
[1722454420106,3.04113,3288.3,3287.3,3.042]
[1722454420107,3.04109,3288.3,3287.3,3.042]
[1722454420270,3.04094,3288.5,3287.5,3.04182]
[1722454420457,3.04079,3288.7,3287.6,0.67108589]
[1722454421107,7.47,3289.0,3287.6,0.67108589]
[1722454421267,3.04086,3288.6,3287.6,0.67108589]
[1722454421467,3.0409,3288.5,3287.7,35.0]
[1722454421681,3.04099,3288.4,3287.8,0.06082173]
[1722454421906,3.04081,3288.6,3287.8,3.04603002]
[1722454422210,3.04106,3288.4,3287.8,2.98520829]
[1722454422368,1.5484298,3288.5,3287.7,35.0]
[1722454422369,3.04127,3288.1,3287.7,35.0]
[1722454422573,3.0411,3288.3,3287.7,35.0]
[1722454422818,3.04099,3288.4,3287.7,35.0]
[1722454423101,3.04083,3288.6,3287.8,0.06082471]
[1722454423301,1.54837957,3288.5,3287.8,0.06082471]
[1722454423507,1.54837957,3288.5,3287.8,3.046033]
[1722454423707,6.66445465,3288.9,3287.8,5.427433]
[1722454423894,2.87548232,3288.8,3287.9,0.06081414]
[1722454424098,2.8754725,3288.7,3287.9,0.06081414]
[1722454424294,2.8754725,3288.7,3287.8,8.40813829]
[1722454424295,3.04082,3288.6,3287.8,5.36660829]
[1722454424483,3.041,3288.4,3287.8,2.98520829]
[1722454424682,3.041,3288.4,3287.7,35.0]
[1722454424883,3.97644698,3288.9,3287.7,35.0]
[1722454424884,0.62392465,3288.8,3287.7,35.0]
[1722454425085,1.54835009,3288.7,3287.8,0.060823]
[1722454425285,2.87559965,3288.7,3287.8,3.102303]
[1722454425495,2.87559965,3288.7,3287.8,0.060823]
[1722454425496,3.0409,3288.5,3287.8,0.060823]
[1722454425686,1.54835009,3288.4,3287.8,3.04603129]
[1722454425887,3.04092,3288.5,3287.8,3.04603129]
[1722454426099,3.04092,3288.5,3287.8,2.98520829]
[1722454426306,3.04109,3288.3,3287.8,2.98520829]
[1722454426476,1.54849861,3288.2,3287.7,35.0]
[1722454426671,3.04113,3288.3,3287.7,35.0]
[1722454426875,1.54849077,3288.2,3287.7,35.0]
[1722454427075,3.04146,3287.9,3287.7,35.0]
[1722454427286,3.04193,3287.4,3286.5,9.7617]
[1722454427613,2.3163,3288.3,3286.0,3.04316]
[1722454427614,0.62399361,3287.5,3286.0,3.04316]
[1722454427913,0.62399361,3287.3,3286.1,35.0]
[1722454428219,3.0421,3287.2,3286.2,3.04295]
[1722454428514,3.66594361,3287.4,3286.4,3.04279]
[1722454428674,3.04155,3287.8,3286.9,3.04236]
[1722454428874,0.62399361,3287.9,3287.1,3.04211]
[1722454429128,0.62399361,3288.1,3287.2,0.06083013]
[1722454429325,3.04138,3288.0,3287.3,0.06083009]
[1722454429523,0.62399361,3287.8,3286.9,35.0]
[1722454429689,0.62399361,3287.7,3286.9,35.0]
[1722454429890,3.04189,3287.5,3286.9,35.0]
[1722454431502,0.62399361,3287.5,3286.9,35.0]
[1722454431703,3.66572361,3287.6,3286.9,35.0]
[1722454431916,3.04188,3287.5,3286.9,35.0]
[1722454432094,3.04192,3287.4,3286.9,35.0]
[1722454432642,3.04192,3287.4,3286.6,2.426]
[1722454432922,3.04192,3287.4,3286.5,0.304279]
[1722454432923,3.04234,3287.0,3286.7,0.2730279]
[1722454433073,3.04234,3287.0,3286.1,2.2832]
[1722454433074,3.04238,3286.9,3286.1,2.2832]
[1722454433245,3.04248,3286.8,3286.6,35.0]
[1722454433568,3.04286,3286.4,3285.1,2.2969]
[1722454433886,0.62399361,3287.0,3285.1,2.2969]
[1722454433887,3.04325,3286.0,3285.2,36.05869]
[1722454434098,0.93599042,3286.5,3285.3,0.06086872]
[1722454434099,3.66620483,3286.2,3285.3,0.06086872]
[1722454434230,0.62309483,3286.1,3285.3,0.06086872]
[1722454434429,3.66621483,3286.1,3285.3,0.06086872]
[1722454434643,3.66621483,3286.1,3285.2,1.05869]
[1722454434644,3.04334,3285.9,3285.2,1.05869]
[1722454434839,3.04312,3286.1,3285.3,35.0]
[1722454434840,3.66621483,3286.1,3285.3,35.0]
[1722454435027,0.62309483,3286.2,3285.3,35.06087262]
[1722454435254,0.62309483,3286.3,3285.3,38.10471262]
[1722454435456,3.04305,3286.2,3285.3,35.06087262]
[1722454435773,3.04305,3286.2,3285.0,1.0]
[1722454435774,0.62309483,3286.1,3285.0,1.0]
[1722454435932,3.04349,3285.7,3285.0,1.0]
[1722454436141,3.04375,3285.5,3285.0,1.0]
[1722454436770,3.04365,3285.6,3285.0,1.0]
[1722454437437,3.0434,3285.8,3285.0,1.0]
[1722454437670,3.66424337,3286.0,3285.1,0.06087742]
[1722454437671,3.04325,3286.0,3285.1,0.06087742]
[1722454438004,0.62099337,3286.4,3285.2,35.0]
[1722454438132,3.04345,3285.8,3285.2,35.0]
[1722454438334,3.04349,3285.7,3285.2,35.0]
[1722454438597,0.98309271,3286.3,3285.2,35.0]
[1722454438598,3.04364,3285.6,3285.2,35.0]
[1722454438771,3.04307,3286.2,3285.0,1.0]
[1722454438772,3.04377,3285.4,3285.0,1.0]
[1722454439253,3.04377,3285.4,3285.0,36.0]
[1722454439457,3.04374,3285.5,3285.0,36.0]
[1722454439881,3.04352,3285.7,3285.0,36.0]
[1722454440086,3.0,3286.1,3285.1,3.10491051]
[1722454440404,3.04332,3285.9,3285.2,0.06086587]
[1722454440532,3.04355,3285.7,3285.0,38.98520829]
[1722454440734,3.9729152,3286.5,3285.0,38.98520829]
[1722454440735,3.0434,3285.8,3285.1,3.04608291]
[1722454440957,3.04323,3286.0,3285.1,3.04608291]
[1722454441191,0.62009013,3286.4,3285.1,3.04608291]
[1722454441192,3.04312,3286.1,3285.1,6.09006291]
[1722454441485,3.04348,3285.8,3285.1,2.98520829]
[1722454441688,3.04303,3286.2,3285.1,2.98520829]
[1722454441991,3.04317,3286.1,3285.2,2.98520829]
[1722454442299,3.04275,3286.5,3285.3,0.0608731]
[1722454442453,3.0,3286.4,3285.5,3.04367]
[1722454442633,3.0,3286.4,3285.3,3.1046431]
[1722454442989,3.04322,3286.0,3285.2,2.98520829]
[1722454443269,3.0,3286.4,3285.0,36.0]
[1722454443270,3.04347,3285.8,3285.0,36.0]
[1722454443649,3.04379,3285.4,3285.0,36.0]
[1722454443836,3.04386,3285.3,3285.0,36.0]
[1722454444040,6.08781,3285.3,3285.0,1.0]
[1722454444236,3.0,3286.2,3285.0,1.0]
[1722454444237,3.04404,3285.1,3285.0,1.0]
[1722454444442,3.04325,3286.0,3285.0,1.0]
[1722454444443,3.04321,3286.0,3285.0,1.0]
[1722454444753,3.04379,3285.4,3285.0,1.0]
[1722454444960,3.04358,3285.6,3285.0,1.0]
[1722454445151,5.46277,3285.8,3285.0,1.0]
[1722454445347,3.04363,3285.6,3285.0,1.0]
[1722454445547,3.04382,3285.4,3285.0,1.0]
[1722454446077,3.0,3285.7,3285.0,1.0]
[1722454446078,3.04404,3285.1,3285.0,1.0]
[1722454446250,3.04395,3285.3,3285.0,1.0]
[1722454446572,6.08789,3285.3,3285.0,1.0]
[1722454446759,3.0,3285.7,3285.0,1.0]
[1722454446966,3.04356,3285.7,3285.0,1.0]
[1722454447159,3.0436,3285.6,3285.0,1.0]
[1722454447363,3.04368,3285.5,3285.0,1.0]
[1722454447564,3.04358,3285.6,3285.0,1.0]
[1722454447874,3.04351,3285.7,3285.0,1.0]
[1722454448108,3.04295,3286.3,3285.0,1.0]
[1722454448109,3.66117634,3286.8,3285.0,4.04411]
[1722454448252,3.043,3286.3,3285.3,3.04379]
[1722454448442,2.4549,3287.0,3285.4,0.06086436]
[1722454448642,10.5127,3286.6,3285.5,35.0]
[1722454448851,3.04293,3286.3,3285.6,0.06086436]
[1722454449347,3.04293,3286.3,3285.2,3.0439]
[1722454449586,3.04293,3286.3,3285.1,3.448411]
[1722454449587,3.04317,3286.1,3285.3,35.6492311]
[1722454449750,3.04304,3286.2,3285.3,35.6492311]
[1722454449953,3.04326,3286.0,3285.3,35.6492311]
[1722454450151,3.04307,3286.2,3285.3,35.6492311]
[1722454450353,3.04299,3286.3,3285.4,0.06086868]
[1722454450588,3.04296,3286.3,3285.5,2.98520829]
[1722454450797,3.04312,3286.1,3285.5,2.98520829]
[1722454451514,3.04276,3286.5,3285.5,2.98520829]
[1722454451667,3.0,3286.4,3285.5,2.98520829]
[1722454451877,3.04329,3286.0,3285.5,2.98520829]
[1722454452048,3.04318,3286.1,3285.3,35.6492311]
[1722454452049,3.04366,3285.6,3285.3,35.0]
[1722454452249,3.04366,3285.6,3285.0,1.0]
[1722454452707,6.08762,3285.4,3285.0,1.0]
[1722454452998,3.04367,3285.5,3285.1,35.0]
[1722454453218,3.04387,3285.3,3285.1,35.0]
[1722454453370,3.04388,3285.3,3285.1,35.0]
[1722454453717,3.04388,3285.3,3285.0,1.0]
[1722454453718,3.04395,3285.2,3285.0,1.0]
[1722454453878,3.04333,3285.9,3285.0,1.0]
[1722454453879,6.08808,3285.1,3285.0,1.0]
[1722454454201,3.04362,3285.6,3285.0,1.0]
[1722454454385,3.04404,3285.1,3285.0,1.0]
[1722454454589,6.08808,3285.1,3285.0,1.0]
[1722454454900,3.0439,3285.3,3285.0,1.0]
[1722454455396,3.04397,3285.2,3285.0,1.0]
[1722454455569,3.04404,3285.1,3285.0,1.0]
[1722454455991,3.04372,3285.5,3285.0,1.0]
[1722454456183,3.0,3285.4,3285.0,1.0]
[1722454456999,3.0432,3286.1,3285.0,4.04413]
[1722454457230,3.04307,3286.2,3285.0,4.04413]
[1722454457231,3.04307,3286.2,3285.1,3.81368902]
[1722454457381,9.9053,3286.6,3285.2,35.0]
[1722454457581,3.04315,3286.1,3285.2,35.0]
[1722454457899,3.04322,3286.0,3285.2,35.0]
[1722454458099,6.0865,3286.0,3285.2,35.0]
[1722454458304,3.04339,3285.9,3285.3,2.98520829]
[1722454458504,3.04307,3286.2,3285.3,2.98520829]
[1722454458688,3.04307,3286.2,3285.1,0.708836]
[1722454458883,5.4353,3286.6,3285.2,35.0]
[1722454458884,3.04348,3285.8,3285.2,35.0]
[1722454459080,5.4353,3286.6,3285.2,35.0]
[1722454459081,3.04329,3286.0,3285.2,35.06087125]
[1722454459346,3.04317,3286.1,3285.2,35.0]
[1722454459492,3.0435,3285.7,3285.2,35.0]
[1722454459789,3.04313,3286.1,3285.3,2.98520829]
[1722454459976,3.04299,3286.3,3285.3,3.04608289]
[1722454460165,3.04284,3286.4,3285.3,3.1047246]
[1722454460370,3.0428,3286.5,3285.3,3.1047246]
[1722454460371,5.47803,3286.6,3285.6,3.04356]
[1722454460595,0.61959659,3287.0,3285.4,35.0]
[1722454460596,3.04283,3286.5,3285.4,38.04372]
[1722454460904,3.0,3286.9,3285.9,3.04323]
[1722454460905,3.04247,3286.9,3285.9,3.04323]
[1722454461111,3.04247,3286.9,3286.0,0.06085525]
[1722454461316,3.04207,3287.3,3286.3,3.0429]
[1722454461618,3.04186,3287.5,3286.4,0.06084747]
[1722454461768,3.04193,3287.4,3286.5,35.0]
[1722454461964,3.04201,3287.3,3286.6,0.06084498]
[1722454462210,3.04201,3287.3,3286.5,35.0]
[1722454462211,3.04238,3286.9,3286.5,35.0]
[1722454462414,3.0422,3287.1,3286.5,35.0]
[1722454462719,3.04223,3287.1,3286.5,35.0]
[1722454462916,3.04236,3287.0,3286.5,35.0]
[1722454463203,3.04248,3286.8,3286.5,35.0]
[1722454463406,3.04243,3286.9,3286.5,35.0]
[1722454463567,3.04222,3287.1,3286.5,35.0]
[1722454463963,3.04174,3287.6,3286.5,35.0]
[1722454463964,6.08373,3287.5,3286.5,37.98520829]
[1722454464167,6.04197,3287.4,3286.5,37.98520829]
[1722454465013,3.0,3287.4,3286.5,37.98520829]
[1722454465168,6.04196,3287.4,3286.5,37.98520829]
[1722454465372,3.04211,3287.2,3286.5,37.98520829]
[1722454465892,3.04235,3287.0,3286.5,37.98520829]
[1722454466207,3.04262,3286.7,3286.5,35.0]
[1722454466378,3.0,3287.4,3285.8,5.3482]
[1722454466379,3.04229,3287.0,3285.8,2.3482]
[1722454466579,3.66210251,3287.4,3285.8,2.3482]
[1722454466580,3.04271,3286.6,3285.8,2.3482]
[1722454466779,6.08526,3286.7,3285.9,35.0]
[1722454466978,3.04281,3286.5,3285.9,37.98520829]
[1722454467184,3.04261,3286.7,3285.9,37.98520829]
[1722454467380,3.04254,3286.8,3285.9,37.98520829]
[1722454467586,3.04241,3286.9,3285.9,37.98520829]
[1722454467788,3.04257,3286.7,3285.9,37.98520829]
[1722454467985,3.04257,3286.7,3286.0,2.36712513]
[1722454468207,3.04241,3286.9,3286.0,2.36712513]
[1722454468385,3.6627537,3287.1,3286.0,5.47118486]
[1722454468568,0.93080055,3287.2,3286.0,3.10405973]
[1722454468569,0.6205337,3287.2,3286.0,3.10405973]
[1722454468773,3.04204,3287.3,3286.3,3.04293]
[1722454469003,3.04204,3287.3,3286.4,0.06084839]
[1722454469271,0.6205337,3287.5,3286.4,0.06084839]
[1722454469469,3.04211,3287.2,3286.4,0.06084839]
[1722454469700,3.04207,3287.3,3286.5,35.0]
[1722454469914,3.04207,3287.3,3286.6,0.06084381]
[1722454470177,3.04195,3287.4,3286.6,0.06084381]
[1722454470378,0.6205337,3287.4,3286.6,0.06084381]
[1722454470614,0.6205337,3287.6,3286.7,38.04255]
[1722454470815,6.0836,3287.6,3286.8,2.98520829]
[1722454470980,0.6205337,3287.6,3286.8,2.98520829]
[1722454471185,3.04187,3287.5,3286.8,2.98520829]
[1722454471586,3.04199,3287.4,3286.8,2.98520829]
[1722454471880,0.6205337,3287.6,3286.8,2.98520829]
[1722454471881,3.6623337,3287.6,3286.8,2.98520829]
[1722454472111,0.6205337,3287.5,3286.9,2.98520829]
[1722454472330,0.6205337,3287.5,3286.8,2.3787]
[1722454472821,0.6205337,3287.5,3286.9,35.06083754]
[1722454473410,0.6205337,3287.5,3287.0,0.06083639]
[1722454473609,0.6205337,3287.6,3287.0,0.06083639]
[1722454474104,3.04178,3287.6,3287.1,35.0]
[1722454474308,0.6205337,3287.5,3287.1,35.0]
[1722454474504,3.6623137,3287.6,3287.1,35.0]
[1722454474917,0.6205337,3287.5,3286.3,3.0]
[1722454475128,3.04225,3287.1,3286.4,0.847367]
[1722454475435,3.04243,3286.9,3286.4,0.847367]
[1722454475657,0.6205337,3287.0,3286.2,2.4307]
[1722454475803,0.6205337,3286.9,3286.2,2.4307]
[1722454476003,3.6629137,3286.9,3286.3,35.0]
[1722454476224,3.04248,3286.8,3286.3,35.0]
[1722454476430,0.6205337,3286.8,3286.3,35.0]
[1722454476613,3.04236,3287.0,3286.4,2.98520829]
[1722454476848,0.62275731,3286.9,3286.4,2.98520829]
[1722454477155,0.62275731,3286.9,3286.5,0.06084982]
[1722454477299,0.93413597,3287.0,3286.5,0.06084982]
[1722454477300,0.62275731,3287.0,3286.5,0.06084982]
[1722454479228,0.62275731,3287.0,3286.2,5.47372]
[1722454479432,3.66504731,3287.0,3286.3,35.547372]
[1722454479632,0.62275731,3287.0,3286.3,35.547372]
[1722454479955,3.66504731,3287.0,3286.3,35.547372]
[1722454480115,0.62275731,3287.0,3286.3,35.547372]
[1722454480643,3.66504731,3287.0,3286.3,35.547372]
[1722454480972,0.62275731,3287.0,3286.4,2.98520829]
[1722454481335,0.62275731,3287.0,3286.5,0.06084892]
[1722454481531,0.62275731,3287.0,3286.5,35.0]
[1722454481731,3.04243,3286.9,3286.3,0.547372]
[1722454481912,0.62275731,3287.0,3286.2,3.04302]
[1722454482116,0.62275731,3287.0,3286.4,3.10360891]
[1722454482353,0.62275731,3287.0,3286.6,3.0426]
[1722454482515,0.62275731,3287.0,3286.7,0.06084273]
[1722454482720,0.62275731,3287.0,3286.9,3.04238]
[1722454483133,0.62275731,3287.6,3287.0,3.04222]
[1722454483334,0.62275731,3287.6,3287.1,3.10296644]
[1722454483534,0.62275731,3287.7,3287.2,0.31029664]
[1722454483733,0.62275731,3287.7,3287.3,3.10282973]
[1722454483934,0.62275731,3287.9,3287.4,3.04189]
[1722454484136,0.62275731,3287.9,3287.5,0.06082933]
[1722454484337,0.62275731,3288.0,3287.5,0.06082933]
[1722454484537,0.62275731,3287.9,3287.5,0.06082933]
[1722454485062,0.62275731,3287.9,3287.2,0.31029664]
[1722454485063,0.62275731,3287.9,3287.3,0.06082935]
[1722454485848,3.66421731,3287.9,3287.3,0.06082935]
[1722454486163,3.66421731,3287.9,3287.0,6.04227]
[1722454486164,3.66421731,3287.9,3287.1,0.0608294]
[1722454486365,3.04155,3287.8,3287.2,0.30608294]
[1722454486561,3.66421731,3287.9,3287.3,0.06083291]
[1722454486749,0.62275731,3287.9,3287.3,0.06083291]
[1722454487543,0.62268886,3287.9,3287.3,0.06083291]
[1722454488244,0.62268886,3288.0,3287.3,0.06083291]
[1722454488444,0.62268886,3287.9,3287.3,0.06083291]
[1722454488639,0.62268886,3288.0,3287.3,0.06083291]
[1722454488850,0.62268886,3288.0,3287.4,0.34089359]
[1722454489058,0.62268886,3287.9,3287.4,0.34089359]
[1722454489257,3.66409886,3288.0,3287.2,0.30608294]
[1722454489764,0.62240131,3288.1,3287.2,0.30608294]
[1722454489956,3.66368131,3288.1,3287.2,0.30608294]
[1722454490127,0.62240131,3288.1,3287.2,0.30608294]
[1722454490331,0.62240131,3287.8,3287.0,3.0]
[1722454490532,3.04179,3287.6,3287.0,3.0]
[1722454490864,0.62240131,3287.7,3286.9,35.0]
[1722454491163,0.62240131,3287.7,3287.0,0.06083635]
[1722454491464,0.62240131,3288.0,3287.1,6.02738829]
[1722454491966,0.62240131,3288.0,3287.3,3.042]
[1722454492166,0.62240131,3288.0,3287.2,0.06083247]
[1722454492331,3.04152,3287.9,3287.1,2.98520829]
[1722454492533,3.66392131,3287.9,3287.1,2.98520829]
[1722454492857,6.70528131,3288.0,3287.2,0.06083248]
[1722454493055,3.04157,3287.8,3287.2,0.36543656]
[1722454493233,3.04186,3287.5,3286.9,35.0]
[1722454493565,0.62240131,3287.9,3286.9,35.0]
[1722454493566,0.62240131,3287.6,3286.9,35.0]
[1722454493740,3.04192,3287.4,3286.5,3.04274]
[1722454494136,3.04192,3287.4,3286.6,35.0]
[1722454494455,6.08392,3287.4,3286.6,35.0]
[1722454494653,3.04203,3287.3,3286.6,37.98520829]
[1722454495164,3.04216,3287.2,3286.6,37.98520829]
[1722454495368,0.62240131,3287.4,3286.6,37.98520829]
[1722454495686,3.04201,3287.3,3286.6,37.98520829]
[1722454496035,0.62240131,3287.4,3286.7,3.10339368]
[1722454496235,0.62240131,3287.4,3286.8,2.98520829]
[1722454496462,0.62240131,3287.5,3286.8,2.98520829]
[1722454496666,0.62240131,3287.5,3286.8,6.02764829]
[1722454496887,0.62240131,3287.5,3286.9,3.10313368]
[1722454497053,0.93360197,3287.7,3286.9,3.10313368]
[1722454497054,0.62240131,3287.6,3286.9,3.10313368]
[1722454497254,0.62240131,3287.6,3287.0,0.6088342]
[1722454497464,0.62240131,3287.6,3287.1,0.06083609]
[1722454497968,0.62240131,3287.5,3287.1,0.06083609]
[1722454498171,0.62240131,3287.6,3287.1,0.06083609]
[1722454498333,0.62240131,3287.5,3287.1,35.06083609]
[1722454498539,0.62240131,3287.5,3287.1,38.04604438]
[1722454498785,0.62240131,3287.7,3287.1,38.04604438]
[1722454498986,0.62240131,3287.7,3287.1,6.08823438]
[1722454499281,0.62240131,3287.6,3287.2,5.35713]
[1722454499441,0.62240131,3287.7,3287.3,0.0608332]
[1722454499638,4.59756415,3288.2,3287.3,0.0608332]
[1722454499639,3.04122,3288.2,3287.3,0.0608332]
[1722454499843,0.62319479,3287.7,3287.3,3.1028332]
[1722454500043,0.62319479,3287.7,3287.3,0.0608332]
[1722454500243,0.62319479,3287.6,3287.4,35.0]
[1722454500443,0.62319479,3287.8,3287.6,3.04173]
[1722454500649,0.62319479,3288.1,3287.3,0.23759332]
[1722454500858,0.62319479,3288.0,3287.4,0.06082456]
[1722454501155,0.62319479,3288.2,3287.5,35.0]
[1722454501364,0.62319479,3288.3,3287.8,3.04147]
[1722454501595,0.62319479,3288.2,3287.9,0.06082113]
[1722454502107,0.62319479,3288.4,3287.9,3.10226113]
[1722454502285,0.62319479,3288.3,3287.9,3.10221113]
[1722454502581,0.62319479,3288.5,3288.1,3.04125]
[1722454502909,1.24638958,3288.8,3288.1,3.04125]
[1722454502910,0.62319479,3288.7,3288.2,0.371023]
[1722454503188,0.62319479,3288.8,3288.6,3.0408]
[1722454503487,0.62319479,3289.2,3288.8,3.04055]
[1722454503646,0.62319479,3289.4,3288.9,0.37093707]
[1722454503848,1.54773582,3289.3,3288.9,0.37093707]
[1722454504079,2.17093061,3289.3,3288.9,0.37093707]
[1722454504244,0.1464054,3289.7,3289.0,3.04042]
[1722454504473,0.93555643,3289.5,3289.1,0.4019321]
[1722454504670,1.39381398,3289.7,3289.1,0.4019321]
[1722454504671,0.1464054,3289.7,3289.2,35.0]
[1722454504906,0.1464054,3289.7,3289.3,0.06079641]
[1722454505107,0.1464054,3289.7,3289.5,3.0399]
[1722454505271,0.1464054,3289.7,3289.1,0.34113571]
[1722454505471,0.1464054,3289.7,3289.2,35.58381957]
[1722454506286,0.1464054,3289.7,3289.2,35.0]
[1722454506475,0.1464054,3289.7,3289.3,0.06079228]
[1722454507195,0.1464054,3289.7,3289.4,35.0]
[1722454507403,0.1464054,3289.7,3289.5,0.06079285]
[1722454507773,0.1464054,3289.7,3289.1,0.34113571]
[1722454508011,0.1464054,3289.7,3289.2,35.0]
[1722454508175,0.1464054,3289.7,3289.3,0.06079863]
[1722454509696,3.04004,3289.5,3288.9,0.31013548]
[1722454509872,3.1861954,3289.7,3288.9,0.31013548]
[1722454510081,0.1464054,3289.7,3288.6,3.0]
[1722454510274,3.1862454,3289.7,3288.7,35.0]
[1722454510475,3.03988,3289.6,3288.7,35.0]
[1722454510784,3.03998,3289.5,3288.7,35.0]
[1722454511390,3.1862454,3289.7,3288.7,38.04068]
[1722454511391,0.1464054,3289.7,3288.7,38.04068]
[1722454511599,0.1464054,3289.7,3288.9,2.3246]
[1722454511819,0.1464054,3289.7,3289.0,0.06079506]
[1722454512182,0.1464054,3289.7,3289.1,35.0]
[1722454512382,0.1464054,3289.7,3289.2,0.06079507]
[1722454513385,3.1861954,3289.7,3288.9,2.3246]
[1722454513685,3.1861954,3289.7,3289.0,35.0]
[1722454514021,3.03994,3289.6,3289.0,35.0]
[1722454514178,0.1464054,3289.7,3289.0,35.0]
[1722454514706,3.03988,3289.6,3289.0,35.0]